lending/lending_fUSD_20240605
["ID","MTS","AMOUNT","RATE_DAILY","PERIOD"]
[328613956,1717612246676,-500.0,0.00029997,4]
[328613957,1717612246687,-500.0,0.00029997,4]
[328613958,1717612246696,-500.0,0.00029997,4]
[328613959,1717612246706,-500.0,0.00029997,4]
[328613960,1717612246715,-500.0,0.00029997,4]
[328613961,1717612246725,-500.0,0.00029997,4]
[328613962,1717612246734,-500.0,0.00029997,4]
[328613963,1717612246743,-281.34,0.00029997,4]
[328613964,1717612246753,-500.0,0.00029997,4]
[328613965,1717612246763,-500.0,0.00029997,4]
[328613967,1717612246772,-500.0,0.00029997,4]
[328613969,1717612246782,-272.27047985,0.00029997,4]
[328613971,1717612246791,-172.31963331,0.00029997,4]
[328613972,1717612246800,-500.0,0.00029997,4]
[328613974,1717612246810,-299.67711043,0.00029997,4]
[328613976,1717612246820,-500.0,0.00029997,4]
[328613979,1717612246828,-500.0,0.00029997,4]
[328613980,1717612246838,-500.0,0.00029997,4]
[328613983,1717612246847,-500.0,0.00029997,4]
[328613985,1717612246856,-500.0,0.00029997,4]
[328613987,1717612246866,-500.0,0.00029997,4]
[328613988,1717612246874,-500.0,0.00029997,4]
[328613990,1717612246884,-500.0,0.00029997,4]
[328613993,1717612246893,-500.0,0.00029997,4]
[328613995,1717612246903,-500.0,0.00029997,4]
[328613996,1717612246912,-500.0,0.00029997,4]
[328613999,1717612246921,-500.0,0.00029997,4]
[328614001,1717612246930,-500.0,0.00029997,4]
[328614002,1717612246940,-500.0,0.00029997,4]
[328614004,1717612246949,-500.0,0.00029997,4]
[328614006,1717612246958,-500.0,0.00029997,4]
[328614008,1717612246968,-500.0,0.00029997,4]
[328614010,1717612246977,-500.0,0.00029997,4]
[328614012,1717612246987,-500.0,0.00029997,4]
[328614015,1717612246996,-500.0,0.00029997,4]
[328614016,1717612247008,-500.0,0.00029997,4]
[328614019,1717612247019,-500.0,0.00029997,4]
[328614021,1717612247028,-500.0,0.00029997,4]
[328614037,1717612247172,-500.0,0.00029997,4]
[328614039,1717612247187,-2818.93117646,0.00029998,2]
[328614041,1717612247197,-714.70481135,0.00029998,2]
[328614043,1717612247206,-338.22849758,0.00029998,2]
[328614045,1717612247216,-7532.11307498,0.00029998,2]
[328614047,1717612247224,-855.65609833,0.00029998,2]
[328614049,1717612247234,-307.06708735,0.00029998,2]
[328614051,1717612247243,-10527.4720348,0.00029998,2]
[328614053,1717612247253,-333.82252227,0.00029998,2]
[328614055,1717612247263,-5576.36890792,0.00029998,2]
[328614057,1717612247272,-506.11774641,0.00029998,2]
[328614059,1717612247282,-1275.18335769,0.00029998,2]
[328614061,1717612247291,-3097.54023704,0.00029998,2]
[328614063,1717612247300,-4286.86690961,0.00029998,2]
[328614065,1717612247310,-6148.47338391,0.00029998,2]
[328614067,1717612247321,-2367.97259469,0.00029998,2]
[328614069,1717612247330,-356.24209533,0.00029998,2]
[328614071,1717612247339,-241.30909122,0.00029998,2]
[328614073,1717612247349,-155.0,0.00029998,2]
[328614075,1717612247358,-138637.91654573,0.00029998,2]
[328614077,1717612247368,-155.0,0.00029998,4]
[328614079,1717612247377,-176.371291,0.00029998,2]
[328614081,1717612247387,-640.81556102,0.00029998,2]
[328614083,1717612247396,-500.0,0.00029998,4]
[328614085,1717612247405,-500.0,0.00029998,4]
[328614087,1717612247414,-500.0,0.00029998,4]
[328614089,1717612247423,-500.0,0.00029998,4]
[328614091,1717612247433,-478.74715827,0.00029998,4]
[328614093,1717612247443,-500.0,0.00029998,4]
[328614095,1717612247452,-500.0,0.00029998,4]
[328614097,1717612247461,-500.0,0.00029998,4]
[328614099,1717612247470,-500.0,0.00029998,4]
[328614101,1717612247479,-500.0,0.00029998,4]
[328614103,1717612247488,-500.0,0.00029998,4]
[328614105,1717612247498,-500.0,0.00029998,4]
[328614107,1717612247507,-500.0,0.00029998,4]
[328614109,1717612247516,-500.0,0.00029998,4]
[328614111,1717612247525,-500.0,0.00029998,4]
[328614113,1717612247535,-363.94707527,0.00029998,2]
[328614115,1717612247544,-378.5,0.00029998,2]
[328614117,1717612247553,-575.91634194,0.00029998,4]
[328614119,1717612247563,-500.0,0.00029998,4]
[328614121,1717612247572,-150.94440713,0.00029998,4]
[328614123,1717612247582,-500.0,0.00029998,4]
[328614125,1717612247591,-500.0,0.00029998,4]
[328614127,1717612247601,-500.0,0.00029998,4]
[328614129,1717612247610,-500.0,0.00029998,4]
[328614131,1717612247619,-500.0,0.00029998,4]
[328614133,1717612247629,-500.0,0.00029998,4]
[328614135,1717612247638,-500.0,0.00029998,4]
[328614137,1717612247647,-500.0,0.00029998,4]
[328614139,1717612247656,-500.0,0.00029998,4]
[328614141,1717612247666,-500.0,0.00029998,4]
[328614143,1717612247674,-500.0,0.00029998,4]
[328614145,1717612247683,-500.0,0.00029998,4]
[328614147,1717612247693,-208.72501019,0.00029999,2]
[328614149,1717612247703,-3553.13522223,0.00029999,2]
[328614151,1717612247712,-4000.0,0.00029999,2]
[328614153,1717612247721,-471.16844848,0.00029999,4]
[328614155,1717612247730,-500.0,0.00029999,4]
[328614157,1717612247740,-500.0,0.00029999,4]
[328614159,1717612247749,-508.89867814,0.00029999,4]
[328614161,1717612247758,-500.0,0.00029999,4]
[328614163,1717612247767,-500.0,0.00029999,4]
[328614165,1717612247776,-511.95175721,0.00029999,4]
[328614167,1717612247786,-500.0,0.00029999,4]
[328614169,1717612247795,-500.0,0.00029999,4]
[328614171,1717612247805,-500.0,0.00029999,4]
[328614173,1717612247816,-500.0,0.00029999,4]
[328614175,1717612247825,-463.35373976,0.00029999,4]
[328614177,1717612247834,-500.0,0.00029999,4]
[328614179,1717612247843,-500.0,0.00029999,4]
[328614181,1717612247852,-500.0,0.00029999,4]
[328614183,1717612247861,-500.0,0.00029999,4]
[328614185,1717612247871,-399.83,0.00029999,4]
[328614187,1717612247880,-500.0,0.00029999,4]
[328614189,1717612247890,-500.0,0.00029999,4]
[328614191,1717612247899,-500.0,0.00029999,4]
[328614193,1717612247908,-500.0,0.00029999,4]
[328614195,1717612247917,-500.0,0.00029999,4]
[328614197,1717612247926,-500.0,0.00029999,4]
[328614199,1717612247935,-500.0,0.00029999,4]
[328614201,1717612247944,-500.0,0.00029999,4]
[328614203,1717612247953,-155.22200376,0.00029999,4]
[328614205,1717612247962,-500.0,0.00029999,4]
[328614207,1717612247971,-500.0,0.00029999,4]
[328614209,1717612247980,-500.0,0.00029999,4]
[328614211,1717612247990,-464.1487034,0.00029999,4]
[328614213,1717612247999,-500.0,0.00029999,4]
[328614215,1717612248013,-500.0,0.00029999,4]
[328614217,1717612248022,-500.0,0.00029999,4]
[328614219,1717612248032,-500.0,0.00029999,4]
[328614221,1717612248043,-545.52424405,0.00029999,4]
[328614223,1717612248052,-201.92,0.00029999,4]
[328614225,1717612248061,-500.0,0.00029999,4]
[328614227,1717612248070,-273.70974463,0.00029999,4]
[328614229,1717612248080,-500.0,0.00029999,4]
[328614231,1717612248091,-500.0,0.00029999,4]
[328614233,1717612248101,-500.0,0.00029999,4]
[328614235,1717612248110,-500.0,0.00029999,4]
[328614237,1717612248119,-500.0,0.00029999,4]
[328614238,1717612248128,-500.0,0.00029999,4]
[328614239,1717612248137,-500.0,0.00029999,4]
[328614240,1717612248146,-500.0,0.00029999,4]
[328614241,1717612248156,-430.50112609,0.00029999,4]
[328614242,1717612248166,-500.0,0.00029999,4]
[328614243,1717612248176,-500.0,0.00029999,4]
[328614244,1717612248185,-500.0,0.00029999,4]
[328614245,1717612248195,-500.0,0.00029999,4]
[328614246,1717612248204,-500.0,0.00029999,4]
[328614247,1717612248212,-500.0,0.00029999,4]
[328614248,1717612248222,-500.0,0.00029999,4]
[328614250,1717612248231,-500.0,0.00029999,4]
[328614252,1717612248241,-500.0,0.00029999,4]
[328614253,1717612248250,-500.0,0.00029999,4]
[328614254,1717612248259,-500.0,0.00029999,4]
[328614255,1717612248269,-500.0,0.00029999,4]
[328614256,1717612248279,-501.76992071,0.00029999,4]
[328614257,1717612248289,-500.0,0.00029999,4]
[328614258,1717612248298,-500.0,0.00029999,4]
[328614259,1717612248308,-500.0,0.00029999,4]
[328614260,1717612248319,-500.0,0.00029999,4]
[328614261,1717612248328,-500.0,0.00029999,4]
[328614262,1717612248337,-500.0,0.00029999,4]
[328614263,1717612248347,-500.0,0.00029999,4]
[328614264,1717612248357,-317.99418872,0.00029999,4]
[328614265,1717612248366,-500.0,0.00029999,4]
[328614266,1717612248376,-500.0,0.00029999,4]
[328614267,1717612248385,-500.0,0.00029999,4]
[328614268,1717612248394,-500.0,0.00029999,4]
[328614269,1717612248404,-500.0,0.00029999,4]
[328614270,1717612248413,-500.0,0.00029999,4]
[328614271,1717612248422,-500.0,0.00029999,4]
[328614272,1717612248431,-578.12452559,0.00029999,4]
[328614273,1717612248441,-500.0,0.00029999,4]
[328614274,1717612248450,-500.0,0.00029999,4]
[328614275,1717612248460,-500.0,0.00029999,4]
[328614276,1717612248469,-500.0,0.00029999,4]
[328614277,1717612248478,-162.92673286,0.00029999,4]
[328614278,1717612248488,-500.0,0.00029999,4]
[328614279,1717612248498,-500.0,0.00029999,4]
[328614280,1717612248508,-500.0,0.00029999,4]
[328614281,1717612248517,-500.0,0.00029999,4]
[328614282,1717612248528,-500.0,0.00029999,4]
[328614283,1717612248538,-500.0,0.00029999,4]
[328614284,1717612248548,-500.0,0.00029999,4]
[328614285,1717612248558,-500.0,0.00029999,4]
[328614286,1717612248569,-500.0,0.00029999,4]
[328614287,1717612248578,-246.5303308,0.00029999,4]
[328614288,1717612248587,-500.0,0.00029999,4]
[328614289,1717612248602,-574.12,0.00029999,4]
[328614290,1717612248611,-500.0,0.00029999,4]
[328614291,1717612248625,-574.67431983,0.00029999,4]
[328614292,1717612248635,-533.8,0.00029999,4]
[328614293,1717612248645,-501.41820918,0.00029999,4]
[328614294,1717612248654,-500.0,0.00029999,4]
[328614295,1717612248664,-500.0,0.00029999,4]
[328614296,1717612248674,-489.45,0.00029999,4]
[328614297,1717612248683,-500.0,0.00029999,4]
[328614298,1717612248693,-500.0,0.00029999,4]
[328614299,1717612248702,-500.0,0.00029999,4]
[328614300,1717612248711,-500.0,0.00029999,4]
[328614301,1717612248721,-500.0,0.00029999,4]
[328614302,1717612248731,-500.0,0.00029999,4]
[328614303,1717612248741,-500.0,0.00029999,4]
[328614304,1717612248750,-500.0,0.00029999,4]
[328614305,1717612248759,-500.0,0.00029999,4]
[328614306,1717612248769,-500.0,0.00029999,4]
[328614307,1717612248778,-153.87567762,0.00029999,4]
[328614308,1717612248787,-500.0,0.00029999,4]
[328614309,1717612248797,-500.0,0.00029999,4]
[328614310,1717612248807,-500.0,0.00029999,4]
[328614311,1717612248816,-172.47,0.00029999,4]
[328614312,1717612248825,-159.0,0.0003,5]
[328614313,1717612248834,-1147.7697886,0.0003,5]
[328614314,1717612248843,-599.66052467,0.0003,13]
[328614315,1717612248893,-145268.03503011,0.0003,13]
[328614316,1717612248902,-314132.43440946,0.0003,2]
[328614317,1717612248914,-10123.83452559,0.0003,2]
[328614318,1717612248925,-3563.04999999,0.0003,2]
[328614319,1717612248951,-509.03814061,0.00029898,2]
[328614320,1717612248961,-7890.96185939,0.0003,2]
[328614321,1717612248972,-9259.25,0.0003,2]
[328614322,1717612248984,-18282.89744668,0.0003,2]
[328614323,1717612248997,-27976.96722971,0.0003,2]
[328614324,1717612249011,-13567.36249202,0.0003,2]
[328614325,1717612264870,2078.57603791,0.00022049,2]
[328614326,1717612269888,9186.37853238,0.00022499,2]
[328614327,1717612275859,945.9503,0.00022499,2]
[328614328,1717612296031,150.84,0.00024384,2]
[328614329,1717612426347,214.11781551,0.00033654,30]
[328614330,1717612426609,481.28917382,0.00033654,30]
[328614331,1717612427763,359.70370016,0.00033654,30]
[328614332,1717612430297,831.38383718,0.00033654,30]
[328614333,1717612438939,696.19472427,0.00033654,30]
[328614334,1717612442157,679.04749641,0.00033654,30]
[328614335,1717612444129,1131.68177072,0.00033654,30]
[328614336,1717612455375,444.04639419,0.00033654,60]
[328614338,1717612459094,1893.20300936,0.00033654,30]
[328614339,1717612459727,493.04761472,0.00033654,30]
[328614340,1717612460373,367.07415421,0.00033654,30]
[328614341,1717612466469,814.3416483,0.00033654,30]
[328614342,1717612474741,822.13070473,0.00033654,30]
[328614343,1717612476436,657.37979145,0.00033654,30]
[328614344,1717612478805,1341.10064144,0.00033654,30]
[328614345,1717612482418,614.44971656,0.00033654,120]
[328614346,1717612484444,884.97464818,0.00033654,30]
[328614348,1717612488386,155.36942487,0.00033654,30]
[328614349,1717612489971,509.55261134,0.00033654,30]
[328614350,1717612490141,196.71456763,0.00033654,30]
[328614351,1717612490673,914.85379229,0.00033654,30]
[328614352,1717612505020,1195.14898549,0.00033654,120]
[328614353,1717612506911,331.862192,0.00033654,30]
[328614354,1717612513462,914.21582536,0.00033654,30]
[328614358,1717612541701,294.0,0.00033654,30]
[328614359,1717612559662,243.40728182,0.000101,2]
[328614360,1717612576806,856.25524779,0.00033654,120]
[328614361,1717612578717,755.28938126,0.00033654,30]
[328614362,1717612584960,595.40558497,0.00033654,30]
[328614363,1717612588436,1283.88693849,0.00033654,30]
[328614364,1717612590657,411.29465999,0.00033654,120]
[328614368,1717612594234,150.0,0.00033654,30]
[328614369,1717612597964,49756.59271818,0.00014,2]
[328614370,1717612597989,148300.0,0.00014,2]
[328614371,1717612598014,8982772.09837021,0.00014,2]
[328614372,1717612606364,841.5122509,0.00033654,30]
[328614373,1717612626675,192.34866545,0.00033654,30]
[328614374,1717612629163,695.09840227,0.00033654,30]
[328614375,1717612629477,862.62012102,0.00033654,30]
[328614376,1717612629808,352.05588607,0.00033654,30]
[328614377,1717612630035,1937.99065391,0.00033654,120]
[328614378,1717612630535,251.93851782,0.00033654,30]
[328614379,1717612630689,925.53188355,0.00033654,30]
[328614380,1717612631392,1260.41634881,0.00033654,30]
[328614381,1717612633404,1089.19342102,0.00033654,30]
[328614382,1717612634032,630.08523196,0.00033654,30]
[328614383,1717612634177,285.18316105,0.00033654,30]
[328614384,1717612636984,1630.14972813,0.00033654,120]
[328614392,1717613238714,-150.0,0.00019725,2]
[328614393,1717613238737,-94.19851638,0.000201,2]
[328614394,1717613249140,-132.37816553,0.000201,2]
[328614395,1717613249162,-661.0,0.000214,3]
[328614396,1717613249183,-826.0,0.000219,2]
[328614397,1717613249202,-947.35180722,0.00022499,2]
[328614398,1717613249222,-2028.0,0.000232,3]
[328614399,1717613249243,-6291.1441,0.000235,2]
[328614400,1717613249263,-150.0,0.00023562,2]
[328614401,1717613249284,-13396.01318911,0.000236,2]
[328614402,1717613249305,-5781.96,0.000236,2]
[328614403,1717613249329,-267.02703309,0.0002381,2]
[328614404,1717613249349,-499.99,0.0002381,2]
[328614405,1717613249371,-2610.75390442,0.00023896,2]
[328614406,1717613249394,-1065.01397905,0.00024,3]
[328614407,1717613249418,-429.12,0.00024374,3]
[328614408,1717613249439,-563.4,0.00024375,2]
[328614409,1717613249458,-1256.00380633,0.00024383,2]
[328614410,1717613249479,-156.23,0.00024384,2]
[328614411,1717613249500,-930.04348634,0.00024384,2]
[328614412,1717613249522,-29002.84851429,0.00024384,2]
[328614416,1717613347128,-40728.953,0.00024384,2]
[328614417,1717613347155,-16663.42110973,0.00024384,2]
[328614418,1717613357161,-3863.2934,0.00024384,2]
[328614419,1717613360103,-17691.98956229,0.00024384,2]
[328614420,1717613360123,-557.04,0.00025108,2]
[328614421,1717613360145,-250.0,0.00025152,2]
[328614422,1717613360167,-2751.0,0.00025152,2]
[328614423,1717613360189,-535.23,0.00025286,2]
[328614424,1717613360211,-164.94,0.00025709,2]
[328614425,1717613360234,-200.0,0.00026131,2]
[328614426,1717613360257,-157.64,0.00026422,2]
[328614428,1717613432707,-169.31,0.00026828,2]
[328614429,1717613432718,-167.0,0.00026936,2]
[328614430,1717613432728,-902.95604195,0.000272,2]
[328614432,1717613432912,-1107.64501168,0.000272,2]
[328614434,1717613432922,-535.23,0.0002755,2]
[328614435,1717613432932,-1670.502963,0.00027833,2]
[328614436,1717613432942,-186.101951,0.00027833,2]
[328614437,1717613432951,-180.851124,0.00027833,2]
[328614438,1717613432961,-205.622317,0.00027833,2]
[328614439,1717613432970,-3698.247632,0.00027833,2]
[328614440,1717613432980,-171.329914,0.00027833,2]
[328614441,1717613432989,-161.564664,0.00027833,2]
[328614442,1717613432999,-3560.558667,0.00027833,2]
[328614443,1717613433008,-202.24068,0.00027833,2]
[328614444,1717613433017,-157.64,0.00027862,2]
[328614445,1717613433027,-175.859741,0.0002792,2]
[328614446,1717613433036,-3342.59850381,0.00028,2]
[328614447,1717613433049,-1670.502963,0.00028181,2]
[328614448,1717613433059,-3698.247632,0.00028181,2]
[328614449,1717613433068,-3560.558667,0.00028181,2]
[328614450,1717613433078,-157.24,0.00028249,2]
[328614451,1717613433087,-15319.42994273,0.00028278,7]
[328614452,1717613433097,-161.564664,0.00028297,2]
[328614453,1717613433106,-1000.0,0.00028322,2]
[328614454,1717613433115,-12524.5498,0.00028429,2]
[328614456,1717613433125,-800.0,0.00028493,2]
[328614458,1717613433138,-1670.502963,0.00028529,2]
[328614460,1717613433148,-186.101951,0.00028529,2]
[328614462,1717613433157,-3698.247632,0.00028529,2]
[328614464,1717613433166,-3560.558667,0.00028529,2]
[328614466,1717613433176,-161.564664,0.00028761,2]
[328614468,1717613433186,-165.60644,0.00028767,14]
[328614470,1717613433196,-278.93747743,0.00028777,2]
[328614472,1717613433206,-1313.73660155,0.00028777,2]
[328614473,1717613433215,-1670.502963,0.00028877,2]
[328614474,1717613433224,-3698.247632,0.00028877,2]
[328614476,1717613433234,-3560.558667,0.00028877,2]
[328614477,1717613433244,-278.9374774,0.00028902,2]
[328614478,1717613433253,-1313.73660152,0.00028902,2]
[328614479,1717613433263,-278.9374774,0.00029027,15]
[328614480,1717613433272,-1313.73660152,0.00029027,15]
[328614481,1717613433282,-1996.0863,0.0002903,2]
[328614482,1717613433293,-889.4,0.00029041,2]
[328614483,1717613433303,-424.97,0.00029041,2]
[328614484,1717613433312,-416.97,0.00029041,2]
[328614485,1717613433322,-872.63,0.00029041,2]
[328614486,1717613433331,-416.97,0.00029041,2]
[328614487,1717613433341,-872.63,0.00029041,2]
[328614488,1717613433350,-416.97,0.00029041,2]
[328614489,1717613433360,-872.63,0.00029041,2]
[328614490,1717613433369,-416.97,0.00029041,2]
[328614491,1717613433382,-872.63,0.00029041,2]
[328614492,1717613433391,-6995.0,0.000291,5]
[328614493,1717613433401,-19345.00304695,0.0002913,10]
[328614496,1717613438710,-2968.20299397,0.0002913,10]
[328614497,1717613438722,-2928.19641503,0.0002913,10]
[328614498,1717613438732,-278.9374774,0.00029151,15]
[328614499,1717613438742,-1313.73660152,0.00029151,15]
[328614500,1717613438752,-525.83,0.00029178,2]
[328614501,1717613438762,-359.94,0.00029178,2]
[328614502,1717613438772,-167.19,0.00029178,2]
[328614503,1717613438782,-152.84,0.00029178,2]
[328614504,1717613438792,-152.49,0.00029178,2]
[328614505,1717613438804,-430.38,0.00029178,2]
[328614506,1717613438813,-422.2,0.00029178,2]
[328614507,1717613438823,-525.83,0.00029178,2]
[328614508,1717613438832,-150.0,0.00029178,2]
[328614509,1717613438842,-164.02,0.00029178,2]
[328614510,1717613438852,-150.0,0.00029178,2]
[328614511,1717613438861,-353.04,0.00029178,2]
[328614512,1717613438871,-150.0,0.00029178,2]
[328614513,1717613438881,-150.0,0.00029178,2]
[328614514,1717613438890,-422.2,0.00029178,2]
[328614515,1717613438900,-353.04,0.00029178,2]
[328614516,1717613438910,-164.02,0.00029178,2]
[328614517,1717613438920,-525.83,0.00029178,2]
[328614519,1717613438930,-422.2,0.00029178,2]
[328614521,1717613438939,-150.0,0.00029178,2]
[328614523,1717613438949,-353.04,0.00029178,2]
[328614525,1717613438958,-164.02,0.00029178,2]
[328614526,1717613438968,-525.83,0.00029178,2]
[328614527,1717613439188,-150.0,0.00029178,2]
[328614528,1717613439210,-525.18,0.00029178,2]
[328614529,1717613439220,-150.0,0.00029178,2]
[328614530,1717613439231,-422.2,0.00029178,2]
[328614531,1717613439241,-164.02,0.00029178,2]
[328614532,1717613439251,-150.0,0.00029178,2]
[328614533,1717613439261,-353.04,0.00029178,2]
[328614534,1717613439271,-1670.502963,0.00029225,2]
[328614535,1717613439280,-186.101951,0.00029225,2]
[328614536,1717613439291,-180.851124,0.00029225,2]
[328614537,1717613439303,-161.564664,0.00029225,2]
[328614538,1717613439313,-2087.26050387,0.00029225,2]
[328614539,1717613439326,-1610.98712813,0.00029225,2]
[328614540,1717613439336,-3560.558667,0.00029225,2]
[328614541,1717613439346,-278.9374774,0.00029276,15]
[328614542,1717613439357,-1313.73660152,0.00029276,15]
[328614543,1717613439367,-157.64,0.00029313,2]
[328614544,1717613439378,-3590.44722545,0.0002938,2]
[328614545,1717613439394,-355.46,0.0002938,2]
[328614546,1717613439406,-2183.14445611,0.0002938,2]
[328614547,1717613439419,-8355.461751,0.0002938,2]
[328614548,1717613439432,-27752.69968377,0.0002938,2]
[328614549,1717613439797,-907.87201028,0.0002938,2]
[328614554,1717613441791,-8335.01417,0.0002938,2]
[328614555,1717613441806,-10717.00002,0.0002938,2]
[328614556,1717613441817,-814.26069745,0.0002938,2]
[328614557,1717613441829,-1950.0,0.0002938,2]
[328614563,1717613443642,-10383.978675,0.0002938,2]
[328614567,1717613444407,-712.7226,0.0002938,2]
[328614568,1717613444419,-1976.17979622,0.0002938,2]
[328614613,1717613446732,-1930.3165915,0.0002938,2]
[328614614,1717613446754,-0.28694817,0.0002938,2]
[328614615,1717613446766,-5638.18028206,0.0002938,2]
[328614616,1717613446775,-521.96049585,0.000294,2]
[328614617,1717613446784,-278.9374774,0.00029401,15]
[328614618,1717613446794,-660.92174469,0.00029401,15]
[328614619,1717613446806,-652.81485683,0.00029401,15]
[328614620,1717613446816,-521.96049579,0.00029471,2]
[328614621,1717613446825,-198.95,0.000295,2]
[328614622,1717613446835,-1003.98,0.000295,2]
[328614623,1717613446845,-1003.98,0.000295,2]
[328614624,1717613446854,-315.52,0.000295,2]
[328614625,1717613446864,-315.52,0.000295,2]
[328614626,1717613446873,-278.9374774,0.00029526,15]
[328614627,1717613446882,-1313.73660152,0.00029526,15]
[328614628,1717613446891,-521.96049579,0.00029543,2]
[328614629,1717613446900,-165.60644,0.00029589,14]
[328614630,1717613446909,-521.96049579,0.00029614,2]
[328614631,1717613446918,-2100.0,0.00029646,2]
[328614632,1717613446927,-278.9374774,0.0002965,15]
[328614634,1717613446936,-985.1722182,0.0002965,15]
[328614636,1717613446948,-328.56438332,0.0002965,15]
[328614638,1717613446958,-521.96049579,0.00029686,2]
[328614640,1717613446967,-282.66872562,0.000297,2]
[328614642,1717613446978,-234.92227438,0.000297,2]
[328614644,1717613446987,-521.96049579,0.00029757,2]
[328614646,1717613446996,-278.9374774,0.00029775,15]
[328614648,1717613447006,-1313.73660152,0.00029775,15]
[328614650,1717613447015,-151.90002869,0.000298,2]
[328614652,1717613447024,-155.0,0.00029807,2]
[328614654,1717613447034,-179.63,0.00029808,30]
[328614656,1717613447043,-528.57794488,0.00029813,2]
[328614657,1717613447056,-6.65205512,0.00029813,2]
[328614658,1717613447065,-521.96049579,0.00029829,2]
[328614659,1717613447075,-169.68259805,0.0002989,2]
[328614660,1717613447084,-526.16,0.0002989,2]
[328614661,1717613447094,-5906.98881012,0.000299,2]
[328614662,1717613447162,-14.60774832,0.000299,2]
[328614663,1717613447173,-7249.61434156,0.000299,2]
[328614664,1717613447183,-211.30063446,0.000299,2]
[328614665,1717613447192,-2539.18394401,0.000299,2]
[328614666,1717613447204,-422.91126348,0.000299,2]
[328614667,1717613447216,-264.94612658,0.000299,2]
[328614668,1717613447227,-500.55199425,0.000299,2]
[328614669,1717613447236,-169.68259804,0.000299,2]
[328614670,1717613447246,-521.96049579,0.000299,2]
[328614671,1717613447255,-278.9374774,0.000299,15]
[328614672,1717613447264,-1.23550483,0.000299,15]
[328614673,1717613447735,8719.41529738,0.00026422,2]
[328614675,1717613497555,1276.26411755,0.00017259,2]
[328614676,1717613505781,338.10237876,0.00017259,2]
[328614677,1717613509538,365.23595949,0.00017259,2]
[328614679,1717613512541,625.70433105,0.00017259,2]
[328614680,1717613518016,241.61,0.00024384,2]
[328614681,1717613520347,263.62581916,0.00017259,2]
[328614682,1717613522362,2366.9955033,0.00017259,2]
[328614683,1717613549013,289.73525073,0.00017259,2]
[328614684,1717613645672,1193.90082004,0.00033486,120]
[328614688,1717614266072,-250.0,0.000247,7]
[328614689,1717614331175,-625.70433105,0.0001636,2]
[328614690,1717614331196,-537.34426648,0.00016361,2]
[328614691,1717614331217,-263.62581916,0.00016362,2]
[328614692,1717614331240,-217.26605951,0.00016363,2]
[328614693,1717614331263,-309.95173225,0.00016365,2]
[328614694,1717614331285,-839.40442826,0.00016365,2]
[328614695,1717614438697,-3063.72776014,0.00016384,2]
[328614696,1717614438726,-1000.0,0.00016385,2]
[328614697,1717614438750,-957.42566488,0.00016396,2]
[328614698,1717614438773,-348.32153392,0.00017259,2]
[328614699,1717614438798,-289.44382211,0.00017259,2]
[328614700,1717614438821,-150.0,0.00017533,2]
[328614701,1717614438844,-499.99,0.00019726,2]
[328614702,1717614438867,-2169.69,0.00019726,2]
[328614703,1717614438888,-150.99,0.00019726,2]
[328614704,1717614438911,-339.79,0.00019726,2]
[328614705,1717614438942,-13180.82,0.00019726,2]
[328614706,1717614438967,-162.29,0.00020149,2]
[328614707,1717614438993,-150.0,0.00022469,2]
[328614708,1717614439019,-605.27,0.00022786,2]
[328614709,1717614439045,-250.0,0.00023998,2]
[328614710,1717614439070,-155.54656387,0.00023998,2]